Workbook

Sheet GOALS
B1: =TODAY() -> 2017-01-18 | C1: GOALS | J1: Exercise | K1: Diet
B2: START DATE | C2: DIET & EXERCISE JOURNAL
B3: =StartDate+121 -> 2017-05-19 | C3: DIETARY ANALYSIS
B5: END DATE
B6: 220.00
B7: START WEIGHT
B8: 180.00 | C8: EXERCISE ANALYSIS
B10: END WEIGHT
B11: =StartWeight-EndWeight -> 40
B12: GOAL LOSS
B13: =EndDate-StartDate -> 121
B14: DAYS TO LOSE
B15: =WeightGoal/B13 -> 0.33
B16: LOSS PER DAY

Sheet DIET
B1: DIET | G1: Goals | H1: Exercise
B2: =Subtitle -> DIET & EXERCISE JOURNAL
B3: DATE | C3: TIME | D3: DESCRIPTION | E3: CALORIES | F3: CARBS | G3: PROTEIN | H3: FAT | I3: NOTES
B4: =StartDate -> 2017-01-18 | C4: 07:00:00 | D4: Coffee | E4: 1 | F4: 0 | G4: 0 | H4: 0 | I4: Morning coffee
B5: =StartDate -> 2017-01-18 | C5: 08:00:00 | D5: Bagel | E5: 10 | F5: 10 | G5: 2 | H5: 10 | I5: Light breakfast
B6: =StartDate -> 2017-01-18 | C6: 12:00:00 | D6: Lunch | E6: 283 | F6: 46 | G6: 18 | H6: 4 | I6: Turkey sandwich
B7: =StartDate -> 2017-01-18 | C7: 19:00:00 | D7: Dinner | E7: 500 | F7: 42 | G7: 35 | H7: 25 | I7: Beef casserole
B8: =StartDate+1 -> 2017-01-19 | C8: 07:00:00 | D8: Coffee | E8: 1 | F8: 0 | G8: 0 | H8: 0 | I8: Morning coffee
B9: =StartDate+1 -> 2017-01-19 | C9: 08:00:00 | D9: Toast | E9: 10 | F9: 10 | G9: 2 | H9: 10 | I9: Light breakfast
B10: =StartDate+1 -> 2017-01-19 | C10: 12:00:00 | D10: Lunch | E10: 189 | F10: 26 | G10: 3 | H10: 8 | I10: Sandwich
B11: =StartDate+1 -> 2017-01-19 | C11: 19:00:00 | D11: Dinner | E11: 477 | F11: 62 | G11: 14 | H11: 21 | I11: Dinner
B12: =StartDate+2 -> 2017-01-20 | C12: 07:00:00 | D12: Coffee | E12: 1 | F12: 0 | G12: 0 | H12: 0 | I12: Morning coffee
B13: =StartDate+2 -> 2017-01-20 | C13: 08:00:00 | D13: Bagel | E13: 245 | F13: 48 | G13: 10 | H13: 2 | I13: Light breakfast
B14: =StartDate+2 -> 2017-01-20 | C14: 12:00:00 | D14: Lunch | E14: 247 | F14: 11 | G14: 43 | H14: 5 | I14: Salad
B15: =StartDate+2 -> 2017-01-20 | C15: 19:00:00 | D15: Dinner | E15: 456 | F15: 64 | G15: 32 | H15: 22 | I15: Dinner
B16: =StartDate+3 -> 2017-01-21 | C16: 07:00:00 | D16: Toast | E16: 10 | F16: 10 | G16: 2 | H16: 10 | I16: Light breakfast
B17: =StartDate+3 -> 2017-01-21 | C17: 10:00:00 | D17: Coffee | E17: 135 | F17: 12 | G17: 9 | H17: 6 | I17: Latte
B18: =StartDate+3 -> 2017-01-21 | C18: 12:15:00 | D18: Lunch | E18: 184 | F18: 7 | G18: 5 | H18: 15 | I18: Salad
B19: =StartDate+5 -> 2017-01-23 | C19: 19:00:00 | D19: Dinner | E19: 477 | F19: 62 | G19: 14 | H19: 21 | I19: Dinner

Sheet EXERCISE
B1: EXERCISE | F1: Diet | G1: Goals
B2: =Subtitle -> DIET & EXERCISE JOURNAL
B3: DATE | C3: DURATION (MIN.) | D3: CALORIES BURNED | E3: NOTES
B4: =StartDate+4 -> 2017-01-22 | C4: 30 | D4: 120 | E4: Treadmill workout
B5: =B4+1 -> 2017-01-23 | C5: 60 | D5: 180 | E5: Low-impact aerobics
B6: =B5+1 -> 2017-01-24 | C6: 60 | D6: 350 | E6: Extreme workout
B7: 2017-01-25 | C7: 30 | D7: 150 | E7: Treadmill workout
B8: 2017-01-26 | C8: 25 | D8: 125 | E8: Run
B9: 2017-01-27 | C9: 20 | D9: 285 | E9: Treadmill workout
B10: 2017-01-28 | C10: 40 | D10: 205 | E10: Run
B11: 2017-01-29 | C11: 30 | D11: 335 | E11: Run
B12: 2017-01-30 | C12: 40 | D12: 175 | E12: Run
B13: 2017-01-31 | C13: 45 | D13: 325 | E13: Treadmill workout
B14: 2017-02-01 | C14: 40 | D14: 270 | E14: Run
B15: 2017-02-02 | C15: 20 | D15: 295 | E15: Treadmill workout
B16: 2017-02-03 | C16: 45 | D16: 350 | E16: Run
B17: 2017-02-04 | C17: 35 | D17: 320 | E17: Run
B18: 2017-02-05 | C18: 40 | D18: 290 | E18: Run
B19: =B18+1 -> 2017-02-06 | C19: 25 | D19: 265 | E19: Treadmill workout
B20: 2017-02-07 | C20: 20 | D20: 195 | E20: Run

Sheet Chart Calculations (hidden)
B2: DIET ANALYSIS CHARTING DATA
B4: Starting row | C4: =ROW(Diet[[#Headers],[DATE]])+1 -> 4 | D4: DATE | E4: DAY | F4: FAT | G4: PROTEIN | H4: CARBS | I4: CALORIES | J4: Number
B5: Last diet entry | C5: =MATCH(9.99E+307,Diet[DATE])+DietRowStart-1 -> 19 | D5: =IFERROR(IF(INDEX(Diet[],DietLastEnd-DietRowStart-J5,1)<>"",INDEX(Diet[],DietLastEnd-DietRowStart-J5,1),""),"") -> 2017-01-18 | E5: =UPPER(TEXT(D5,"DDD")) -> WED | F5: =IFERROR((IF(INDEX(Diet[],DietLastEnd-DietRowStart-J5,1)<>"",INDEX(Diet[],DietLastEnd-DietRowStart-J5,7),NA())),NA()) -> 3.5 | G5: =IFERROR((IF(INDEX(Diet[],DietLastEnd-DietRowStart-J5,1)<>"",INDEX(Diet[],DietLastEnd-DietRowStart-J5,6),NA())),NA()) -> 18 | H5: =IFERROR((IF(INDEX(Diet[],DietLastEnd-DietRowStart-J5,1)<>"",INDEX(Diet[],DietLastEnd-DietRowStart-J5,5),NA())),NA()) -> 46 | I5: =IFERROR((IF(INDEX(Diet[],DietLastEnd-DietRowStart-J5,1)<>"",INDEX(Diet[],DietLastEnd-DietRowStart-J5,4),NA())),NA()) -> 283 | J5: 12
D6: =IFERROR(IF(INDEX(Diet[],DietLastEnd-DietRowStart-J6,1)<>"",INDEX(Diet[],DietLastEnd-DietRowStart-J6,1),""),"") -> 2017-01-18 | E6: WED | F6: =IFERROR((IF(INDEX(Diet[],DietLastEnd-DietRowStart-J6,1)<>"",INDEX(Diet[],DietLastEnd-DietRowStart-J6,7),NA())),NA()) -> 25 | G6: =IFERROR((IF(INDEX(Diet[],DietLastEnd-DietRowStart-J6,1)<>"",INDEX(Diet[],DietLastEnd-DietRowStart-J6,6),NA())),NA()) -> 35 | H6: =IFERROR((IF(INDEX(Diet[],DietLastEnd-DietRowStart-J6,1)<>"",INDEX(Diet[],DietLastEnd-DietRowStart-J6,5),NA())),NA()) -> 42 | I6: =IFERROR((IF(INDEX(Diet[],DietLastEnd-DietRowStart-J6,1)<>"",INDEX(Diet[],DietLastEnd-DietRowStart-J6,4),NA())),NA()) -> 500 | J6: 11
D7: =IFERROR(IF(INDEX(Diet[],DietLastEnd-DietRowStart-J7,1)<>"",INDEX(Diet[],DietLastEnd-DietRowStart-J7,1),""),"") -> 2017-01-19 | E7: THU | F7: =IFERROR((IF(INDEX(Diet[],DietLastEnd-DietRowStart-J7,1)<>"",INDEX(Diet[],DietLastEnd-DietRowStart-J7,7),NA())),NA()) -> 0 | G7: =IFERROR((IF(INDEX(Diet[],DietLastEnd-DietRowStart-J7,1)<>"",INDEX(Diet[],DietLastEnd-DietRowStart-J7,6),NA())),NA()) -> 0 | H7: =IFERROR((IF(INDEX(Diet[],DietLastEnd-DietRowStart-J7,1)<>"",INDEX(Diet[],DietLastEnd-DietRowStart-J7,5),NA())),NA()) -> 0 | I7: =IFERROR((IF(INDEX(Diet[],DietLastEnd-DietRowStart-J7,1)<>"",INDEX(Diet[],DietLastEnd-DietRowStart-J7,4),NA())),NA()) -> 1 | J7: 10
D8: =IFERROR(IF(INDEX(Diet[],DietLastEnd-DietRowStart-J8,1)<>"",INDEX(Diet[],DietLastEnd-DietRowStart-J8,1),""),"") -> 2017-01-19 | E8: THU | F8: =IFERROR((IF(INDEX(Diet[],DietLastEnd-DietRowStart-J8,1)<>"",INDEX(Diet[],DietLastEnd-DietRowStart-J8,7),NA())),NA()) -> 10 | G8: =IFERROR((IF(INDEX(Diet[],DietLastEnd-DietRowStart-J8,1)<>"",INDEX(Diet[],DietLastEnd-DietRowStart-J8,6),NA())),NA()) -> 2 | H8: =IFERROR((IF(INDEX(Diet[],DietLastEnd-DietRowStart-J8,1)<>"",INDEX(Diet[],DietLastEnd-DietRowStart-J8,5),NA())),NA()) -> 10 | I8: =IFERROR((IF(INDEX(Diet[],DietLastEnd-DietRowStart-J8,1)<>"",INDEX(Diet[],DietLastEnd-DietRowStart-J8,4),NA())),NA()) -> 10 | J8: 9
D9: =IFERROR(IF(INDEX(Diet[],DietLastEnd-DietRowStart-J9,1)<>"",INDEX(Diet[],DietLastEnd-DietRowStart-J9,1),""),"") -> 2017-01-19 | E9: THU | F9: =IFERROR((IF(INDEX(Diet[],DietLastEnd-DietRowStart-J9,1)<>"",INDEX(Diet[],DietLastEnd-DietRowStart-J9,7),NA())),NA()) -> 8 | G9: =IFERROR((IF(INDEX(Diet[],DietLastEnd-DietRowStart-J9,1)<>"",INDEX(Diet[],DietLastEnd-DietRowStart-J9,6),NA())),NA()) -> 3 | H9: =IFERROR((IF(INDEX(Diet[],DietLastEnd-DietRowStart-J9,1)<>"",INDEX(Diet[],DietLastEnd-DietRowStart-J9,5),NA())),NA()) -> 26 | I9: =IFERROR((IF(INDEX(Diet[],DietLastEnd-DietRowStart-J9,1)<>"",INDEX(Diet[],DietLastEnd-DietRowStart-J9,4),NA())),NA()) -> 189 | J9: 8
D10: =IFERROR(IF(INDEX(Diet[],DietLastEnd-DietRowStart-J10,1)<>"",INDEX(Diet[],DietLastEnd-DietRowStart-J10,1),""),"") -> 2017-01-19 | E10: THU | F10: =IFERROR((IF(INDEX(Diet[],DietLastEnd-DietRowStart-J10,1)<>"",INDEX(Diet[],DietLastEnd-DietRowStart-J10,7),NA())),NA()) -> 21 | G10: =IFERROR((IF(INDEX(Diet[],DietLastEnd-DietRowStart-J10,1)<>"",INDEX(Diet[],DietLastEnd-DietRowStart-J10,6),NA())),NA()) -> 13.5 | H10: =IFERROR((IF(INDEX(Diet[],DietLastEnd-DietRowStart-J10,1)<>"",INDEX(Diet[],DietLastEnd-DietRowStart-J10,5),NA())),NA()) -> 62 | I10: =IFERROR((IF(INDEX(Diet[],DietLastEnd-DietRowStart-J10,1)<>"",INDEX(Diet[],DietLastEnd-DietRowStart-J10,4),NA())),NA()) -> 477 | J10: 7
D11: =IFERROR(IF(INDEX(Diet[],DietLastEnd-DietRowStart-J11,1)<>"",INDEX(Diet[],DietLastEnd-DietRowStart-J11,1),""),"") -> 2017-01-20 | E11: FRI | F11: =IFERROR((IF(INDEX(Diet[],DietLastEnd-DietRowStart-J11,1)<>"",INDEX(Diet[],DietLastEnd-DietRowStart-J11,7),NA())),NA()) -> 0 | G11: =IFERROR((IF(INDEX(Diet[],DietLastEnd-DietRowStart-J11,1)<>"",INDEX(Diet[],DietLastEnd-DietRowStart-J11,6),NA())),NA()) -> 0 | H11: =IFERROR((IF(INDEX(Diet[],DietLastEnd-DietRowStart-J11,1)<>"",INDEX(Diet[],DietLastEnd-DietRowStart-J11,5),NA())),NA()) -> 0 | I11: =IFERROR((IF(INDEX(Diet[],DietLastEnd-DietRowStart-J11,1)<>"",INDEX(Diet[],DietLastEnd-DietRowStart-J11,4),NA())),NA()) -> 1 | J11: 6
D12: =IFERROR(IF(INDEX(Diet[],DietLastEnd-DietRowStart-J12,1)<>"",INDEX(Diet[],DietLastEnd-DietRowStart-J12,1),""),"") -> 2017-01-20 | E12: FRI | F12: =IFERROR((IF(INDEX(Diet[],DietLastEnd-DietRowStart-J12,1)<>"",INDEX(Diet[],DietLastEnd-DietRowStart-J12,7),NA())),NA()) -> 1.5 | G12: =IFERROR((IF(INDEX(Diet[],DietLastEnd-DietRowStart-J12,1)<>"",INDEX(Diet[],DietLastEnd-DietRowStart-J12,6),NA())),NA()) -> 10 | H12: =IFERROR((IF(INDEX(Diet[],DietLastEnd-DietRowStart-J12,1)<>"",INDEX(Diet[],DietLastEnd-DietRowStart-J12,5),NA())),NA()) -> 48 | I12: =IFERROR((IF(INDEX(Diet[],DietLastEnd-DietRowStart-J12,1)<>"",INDEX(Diet[],DietLastEnd-DietRowStart-J12,4),NA())),NA()) -> 245 | J12: 5
D13: =IFERROR(IF(INDEX(Diet[],DietLastEnd-DietRowStart-J13,1)<>"",INDEX(Diet[],DietLastEnd-DietRowStart-J13,1),""),"") -> 2017-01-20 | E13: FRI | F13: =IFERROR((IF(INDEX(Diet[],DietLastEnd-DietRowStart-J13,1)<>"",INDEX(Diet[],DietLastEnd-DietRowStart-J13,7),NA())),NA()) -> 5 | G13: =IFERROR((IF(INDEX(Diet[],DietLastEnd-DietRowStart-J13,1)<>"",INDEX(Diet[],DietLastEnd-DietRowStart-J13,6),NA())),NA()) -> 43 | H13: =IFERROR((IF(INDEX(Diet[],DietLastEnd-DietRowStart-J13,1)<>"",INDEX(Diet[],DietLastEnd-DietRowStart-J13,5),NA())),NA()) -> 11 | I13: =IFERROR((IF(INDEX(Diet[],DietLastEnd-DietRowStart-J13,1)<>"",INDEX(Diet[],DietLastEnd-DietRowStart-J13,4),NA())),NA()) -> 247 | J13: 4
D14: =IFERROR(IF(INDEX(Diet[],DietLastEnd-DietRowStart-J14,1)<>"",INDEX(Diet[],DietLastEnd-DietRowStart-J14,1),""),"") -> 2017-01-20 | E14: FRI | F14: =IFERROR((IF(INDEX(Diet[],DietLastEnd-DietRowStart-J14,1)<>"",INDEX(Diet[],DietLastEnd-DietRowStart-J14,7),NA())),NA()) -> 22 | G14: =IFERROR((IF(INDEX(Diet[],DietLastEnd-DietRowStart-J14,1)<>"",INDEX(Diet[],DietLastEnd-DietRowStart-J14,6),NA())),NA()) -> 32 | H14: =IFERROR((IF(INDEX(Diet[],DietLastEnd-DietRowStart-J14,1)<>"",INDEX(Diet[],DietLastEnd-DietRowStart-J14,5),NA())),NA()) -> 64 | I14: =IFERROR((IF(INDEX(Diet[],DietLastEnd-DietRowStart-J14,1)<>"",INDEX(Diet[],DietLastEnd-DietRowStart-J14,4),NA())),NA()) -> 456 | J14: 3
D15: =IFERROR(IF(INDEX(Diet[],DietLastEnd-DietRowStart-J15,1)<>"",INDEX(Diet[],DietLastEnd-DietRowStart-J15,1),""),"") -> 2017-01-21 | E15: SAT | F15: =IFERROR((IF(INDEX(Diet[],DietLastEnd-DietRowStart-J15,1)<>"",INDEX(Diet[],DietLastEnd-DietRowStart-J15,7),NA())),NA()) -> 10 | G15: =IFERROR((IF(INDEX(Diet[],DietLastEnd-DietRowStart-J15,1)<>"",INDEX(Diet[],DietLastEnd-DietRowStart-J15,6),NA())),NA()) -> 2 | H15: =IFERROR((IF(INDEX(Diet[],DietLastEnd-DietRowStart-J15,1)<>"",INDEX(Diet[],DietLastEnd-DietRowStart-J15,5),NA())),NA()) -> 10 | I15: =IFERROR((IF(INDEX(Diet[],DietLastEnd-DietRowStart-J15,1)<>"",INDEX(Diet[],DietLastEnd-DietRowStart-J15,4),NA())),NA()) -> 10 | J15: 2
D16: =IFERROR(IF(INDEX(Diet[],DietLastEnd-DietRowStart-J16,1)<>"",INDEX(Diet[],DietLastEnd-DietRowStart-J16,1),""),"") -> 2017-01-21 | E16: SAT | F16: =IFERROR((IF(INDEX(Diet[],DietLastEnd-DietRowStart-J16,1)<>"",INDEX(Diet[],DietLastEnd-DietRowStart-J16,7),NA())),NA()) -> 5.51 | G16: =IFERROR((IF(INDEX(Diet[],DietLastEnd-DietRowStart-J16,1)<>"",INDEX(Diet[],DietLastEnd-DietRowStart-J16,6),NA())),NA()) -> 8.81 | H16: =IFERROR((IF(INDEX(Diet[],DietLastEnd-DietRowStart-J16,1)<>"",INDEX(Diet[],DietLastEnd-DietRowStart-J16,5),NA())),NA()) -> 12.36 | I16: =IFERROR((IF(INDEX(Diet[],DietLastEnd-DietRowStart-J16,1)<>"",INDEX(Diet[],DietLastEnd-DietRowStart-J16,4),NA())),NA()) -> 135 | J16: 1
D17: =IFERROR(IF(INDEX(Diet[],DietLastEnd-DietRowStart-J17,1)<>"",INDEX(Diet[],DietLastEnd-DietRowStart-J17,1),""),"") -> 2017-01-21 | E17: SAT | F17: =IFERROR((IF(INDEX(Diet[],DietLastEnd-DietRowStart-J17,1)<>"",INDEX(Diet[],DietLastEnd-DietRowStart-J17,7),NA())),NA()) -> 15 | G17: =IFERROR((IF(INDEX(Diet[],DietLastEnd-DietRowStart-J17,1)<>"",INDEX(Diet[],DietLastEnd-DietRowStart-J17,6),NA())),NA()) -> 5.43 | H17: =IFERROR((IF(INDEX(Diet[],DietLastEnd-DietRowStart-J17,1)<>"",INDEX(Diet[],DietLastEnd-DietRowStart-J17,5),NA())),NA()) -> 7 | I17: =IFERROR((IF(INDEX(Diet[],DietLastEnd-DietRowStart-J17,1)<>"",INDEX(Diet[],DietLastEnd-DietRowStart-J17,4),NA())),NA()) -> 184 | J17: 0
D18: =IFERROR(IF(INDEX(Diet[],DietLastEnd-DietRowStart-J18,1)<>"",INDEX(Diet[],DietLastEnd-DietRowStart-J18,1)),"") -> 2017-01-23 | E18: MON | F18: =IFERROR((IF(INDEX(Diet[],DietLastEnd-DietRowStart-J18,1)<>"",INDEX(Diet[],DietLastEnd-DietRowStart-J18,7),NA())),NA()) -> 21 | G18: =IFERROR((IF(INDEX(Diet[],DietLastEnd-DietRowStart-J18,1)<>"",INDEX(Diet[],DietLastEnd-DietRowStart-J18,6),NA())),NA()) -> 13.5 | H18: =IFERROR((IF(INDEX(Diet[],DietLastEnd-DietRowStart-J18,1)<>"",INDEX(Diet[],DietLastEnd-DietRowStart-J18,5),NA())),NA()) -> 62 | I18: =IFERROR((IF(INDEX(Diet[],DietLastEnd-DietRowStart-J18,1)<>"",INDEX(Diet[],DietLastEnd-DietRowStart-J18,4),NA())),NA()) -> 477 | J18: -1
B20: EXERCISE ANALYSIS CHARTING DATA
B22: Starting row | C22: =ROW(Exercise[[#Headers],[DATE]])+1 -> 4 | D22: DATE | E22: DAY | F22: DURATION (MIN.) | G22: CALORIES BURNED | H22: Number
B23: Last exercise entry | C23: =MATCH(9.99E+307,Exercise[DATE])+ExerciseRowStart-1 -> 20 | D23: =IFERROR(IF(INDEX(Exercise[],ExerciseLastEnd-ExerciseRowStart-H23,1)<>"",INDEX(Exercise[],ExerciseLastEnd-ExerciseRowStart-H23,1)),"") -> 2017-02-07 | E23: =UPPER(TEXT(D23,"DDD")) -> TUE | F23: =IFERROR((IF(INDEX(Exercise[],ExerciseLastEnd-ExerciseRowStart-H23,1)<>"",INDEX(Exercise[],ExerciseLastEnd-ExerciseRowStart-H23,2),0)),0) -> 20 | G23: =IFERROR((IF(INDEX(Exercise[],ExerciseLastEnd-ExerciseRowStart-H23,2)<>"",INDEX(Exercise[],ExerciseLastEnd-ExerciseRowStart-H23,3),0)),0) -> 195 | H23: -1
D24: =IFERROR(IF(INDEX(Exercise[],ExerciseLastEnd-ExerciseRowStart-H24,1)<>"",INDEX(Exercise[],ExerciseLastEnd-ExerciseRowStart-H24,1)),"") -> 2017-02-06 | E24: MON | F24: =IFERROR((IF(INDEX(Exercise[],ExerciseLastEnd-ExerciseRowStart-H24,1)<>"",INDEX(Exercise[],ExerciseLastEnd-ExerciseRowStart-H24,2),0)),0) -> 25 | G24: =IFERROR((IF(INDEX(Exercise[],ExerciseLastEnd-ExerciseRowStart-H24,2)<>"",INDEX(Exercise[],ExerciseLastEnd-ExerciseRowStart-H24,3),0)),0) -> 265 | H24: 0
D25: =IFERROR(IF(INDEX(Exercise[],ExerciseLastEnd-ExerciseRowStart-H25,1)<>"",INDEX(Exercise[],ExerciseLastEnd-ExerciseRowStart-H25,1)),"") -> 2017-02-05 | E25: SUN | F25: =IFERROR((IF(INDEX(Exercise[],ExerciseLastEnd-ExerciseRowStart-H25,1)<>"",INDEX(Exercise[],ExerciseLastEnd-ExerciseRowStart-H25,2),0)),0) -> 40 | G25: =IFERROR((IF(INDEX(Exercise[],ExerciseLastEnd-ExerciseRowStart-H25,2)<>"",INDEX(Exercise[],ExerciseLastEnd-ExerciseRowStart-H25,3),0)),0) -> 290 | H25: 1
D26: =IFERROR(IF(INDEX(Exercise[],ExerciseLastEnd-ExerciseRowStart-H26,1)<>"",INDEX(Exercise[],ExerciseLastEnd-ExerciseRowStart-H26,1)),"") -> 2017-02-04 | E26: SAT | F26: =IFERROR((IF(INDEX(Exercise[],ExerciseLastEnd-ExerciseRowStart-H26,1)<>"",INDEX(Exercise[],ExerciseLastEnd-ExerciseRowStart-H26,2),0)),0) -> 35 | G26: =IFERROR((IF(INDEX(Exercise[],ExerciseLastEnd-ExerciseRowStart-H26,2)<>"",INDEX(Exercise[],ExerciseLastEnd-ExerciseRowStart-H26,3),0)),0) -> 320 | H26: 2
D27: =IFERROR(IF(INDEX(Exercise[],ExerciseLastEnd-ExerciseRowStart-H27,1)<>"",INDEX(Exercise[],ExerciseLastEnd-ExerciseRowStart-H27,1)),"") -> 2017-02-03 | E27: FRI | F27: =IFERROR((IF(INDEX(Exercise[],ExerciseLastEnd-ExerciseRowStart-H27,1)<>"",INDEX(Exercise[],ExerciseLastEnd-ExerciseRowStart-H27,2),0)),0) -> 45 | G27: =IFERROR((IF(INDEX(Exercise[],ExerciseLastEnd-ExerciseRowStart-H27,2)<>"",INDEX(Exercise[],ExerciseLastEnd-ExerciseRowStart-H27,3),0)),0) -> 350 | H27: 3
D28: =IFERROR(IF(INDEX(Exercise[],ExerciseLastEnd-ExerciseRowStart-H28,1)<>"",INDEX(Exercise[],ExerciseLastEnd-ExerciseRowStart-H28,1)),"") -> 2017-02-02 | E28: THU | F28: =IFERROR((IF(INDEX(Exercise[],ExerciseLastEnd-ExerciseRowStart-H28,1)<>"",INDEX(Exercise[],ExerciseLastEnd-ExerciseRowStart-H28,2),0)),0) -> 20 | G28: =IFERROR((IF(INDEX(Exercise[],ExerciseLastEnd-ExerciseRowStart-H28,2)<>"",INDEX(Exercise[],ExerciseLastEnd-ExerciseRowStart-H28,3),0)),0) -> 295 | H28: 4
D29: =IFERROR(IF(INDEX(Exercise[],ExerciseLastEnd-ExerciseRowStart-H29,1)<>"",INDEX(Exercise[],ExerciseLastEnd-ExerciseRowStart-H29,1)),"") -> 2017-02-01 | E29: WED | F29: =IFERROR((IF(INDEX(Exercise[],ExerciseLastEnd-ExerciseRowStart-H29,1)<>"",INDEX(Exercise[],ExerciseLastEnd-ExerciseRowStart-H29,2),0)),0) -> 40 | G29: =IFERROR((IF(INDEX(Exercise[],ExerciseLastEnd-ExerciseRowStart-H29,2)<>"",INDEX(Exercise[],ExerciseLastEnd-ExerciseRowStart-H29,3),0)),0) -> 270 | H29: 5
D30: =IFERROR(IF(INDEX(Exercise[],ExerciseLastEnd-ExerciseRowStart-H30,1)<>"",INDEX(Exercise[],ExerciseLastEnd-ExerciseRowStart-H30,1)),"") -> 2017-01-31 | E30: TUE | F30: =IFERROR((IF(INDEX(Exercise[],ExerciseLastEnd-ExerciseRowStart-H30,1)<>"",INDEX(Exercise[],ExerciseLastEnd-ExerciseRowStart-H30,2),0)),0) -> 45 | G30: =IFERROR((IF(INDEX(Exercise[],ExerciseLastEnd-ExerciseRowStart-H30,2)<>"",INDEX(Exercise[],ExerciseLastEnd-ExerciseRowStart-H30,3),0)),0) -> 325 | H30: 6
D31: =IFERROR(IF(INDEX(Exercise[],ExerciseLastEnd-ExerciseRowStart-H31,1)<>"",INDEX(Exercise[],ExerciseLastEnd-ExerciseRowStart-H31,1)),"") -> 2017-01-30 | E31: MON | F31: =IFERROR((IF(INDEX(Exercise[],ExerciseLastEnd-ExerciseRowStart-H31,1)<>"",INDEX(Exercise[],ExerciseLastEnd-ExerciseRowStart-H31,2),0)),0) -> 40 | G31: =IFERROR((IF(INDEX(Exercise[],ExerciseLastEnd-ExerciseRowStart-H31,2)<>"",INDEX(Exercise[],ExerciseLastEnd-ExerciseRowStart-H31,3),0)),0) -> 175 | H31: 7
D32: =IFERROR(IF(INDEX(Exercise[],ExerciseLastEnd-ExerciseRowStart-H32,1)<>"",INDEX(Exercise[],ExerciseLastEnd-ExerciseRowStart-H32,1)),"") -> 2017-01-29 | E32: SUN | F32: =IFERROR((IF(INDEX(Exercise[],ExerciseLastEnd-ExerciseRowStart-H32,1)<>"",INDEX(Exercise[],ExerciseLastEnd-ExerciseRowStart-H32,2),0)),0) -> 30 | G32: =IFERROR((IF(INDEX(Exercise[],ExerciseLastEnd-ExerciseRowStart-H32,2)<>"",INDEX(Exercise[],ExerciseLastEnd-ExerciseRowStart-H32,3),0)),0) -> 335 | H32: 8
D33: =IFERROR(IF(INDEX(Exercise[],ExerciseLastEnd-ExerciseRowStart-H33,1)<>"",INDEX(Exercise[],ExerciseLastEnd-ExerciseRowStart-H33,1)),"") -> 2017-01-28 | E33: SAT | F33: =IFERROR((IF(INDEX(Exercise[],ExerciseLastEnd-ExerciseRowStart-H33,1)<>"",INDEX(Exercise[],ExerciseLastEnd-ExerciseRowStart-H33,2),0)),0) -> 40 | G33: =IFERROR((IF(INDEX(Exercise[],ExerciseLastEnd-ExerciseRowStart-H33,2)<>"",INDEX(Exercise[],ExerciseLastEnd-ExerciseRowStart-H33,3),0)),0) -> 205 | H33: 9
D34: =IFERROR(IF(INDEX(Exercise[],ExerciseLastEnd-ExerciseRowStart-H34,1)<>"",INDEX(Exercise[],ExerciseLastEnd-ExerciseRowStart-H34,1)),"") -> 2017-01-27 | E34: FRI | F34: =IFERROR((IF(INDEX(Exercise[],ExerciseLastEnd-ExerciseRowStart-H34,1)<>"",INDEX(Exercise[],ExerciseLastEnd-ExerciseRowStart-H34,2),0)),0) -> 20 | G34: =IFERROR((IF(INDEX(Exercise[],ExerciseLastEnd-ExerciseRowStart-H34,2)<>"",INDEX(Exercise[],ExerciseLastEnd-ExerciseRowStart-H34,3),0)),0) -> 285 | H34: 10
D35: =IFERROR(IF(INDEX(Exercise[],ExerciseLastEnd-ExerciseRowStart-H35,1)<>"",INDEX(Exercise[],ExerciseLastEnd-ExerciseRowStart-H35,1)),"") -> 2017-01-26 | E35: THU | F35: =IFERROR((IF(INDEX(Exercise[],ExerciseLastEnd-ExerciseRowStart-H35,1)<>"",INDEX(Exercise[],ExerciseLastEnd-ExerciseRowStart-H35,2),0)),0) -> 25 | G35: =IFERROR((IF(INDEX(Exercise[],ExerciseLastEnd-ExerciseRowStart-H35,2)<>"",INDEX(Exercise[],ExerciseLastEnd-ExerciseRowStart-H35,3),0)),0) -> 125 | H35: 11
D36: =IFERROR(IF(INDEX(Exercise[],ExerciseLastEnd-ExerciseRowStart-H36,1)<>"",INDEX(Exercise[],ExerciseLastEnd-ExerciseRowStart-H36,1)),"") -> 2017-01-25 | E36: WED | F36: =IFERROR((IF(INDEX(Exercise[],ExerciseLastEnd-ExerciseRowStart-H36,1)<>"",INDEX(Exercise[],ExerciseLastEnd-ExerciseRowStart-H36,2),0)),0) -> 30 | G36: =IFERROR((IF(INDEX(Exercise[],ExerciseLastEnd-ExerciseRowStart-H36,2)<>"",INDEX(Exercise[],ExerciseLastEnd-ExerciseRowStart-H36,3),0)),0) -> 150 | H36: 12
